[Event "MČR v bleskovém šachu družstev 2019"]
[Site "Teplice, Czech Republic"]
[Date "2019.09.14"]
[Round "1.25"]
[White "Skypala, Ondrej"]
[Black "Krejci, Jan"]
[Result "0-1"]
[TimeControl "3 mim. + 2 s"]
[BlackTitle "GM"]
[WhiteFideId "366285"]
[BlackFideId "322156"]
[WhiteElo "1976"]
[BlackElo "2527"]

1. c4 {[%clk 00:03:01]} {[%emt 00:00:03]} Nf6 {[%clk 00:03:03]} {[%emt
00:00:01]} 2. Nc3 {[%clk 00:03:02]} e6 {[%clk 00:03:03]} {[%emt 00:00:02]} 3.
g3 {[%clk 00:03:03]} d5 {[%clk 00:03:04]} {[%emt 00:00:02]} 4. Bg2 {[%clk
00:03:03]} {[%emt 00:00:01]} d4 {[%clk 00:03:05]} {[%emt 00:00:02]} 5. Ne4
{[%clk 00:03:03]} Nbd7 {[%clk 00:03:00]} {[%emt 00:00:07]} 6. d3 {[%clk
00:03:00]} {[%emt 00:00:05]} Nxe4 {[%clk 00:02:58]} {[%emt 00:00:05]} 7. Bxe4
{[%clk 00:03:00]} {[%emt 00:00:01]} Nf6 {[%clk 00:02:59]} {[%emt 00:00:01]} 8.
Bg2 {[%clk 00:03:01]} {[%emt 00:00:02]} c5 {[%clk 00:02:53]} {[%emt 00:00:07]}
9. Nf3 {[%clk 00:03:01]} {[%emt 00:00:02]} Bd6 {[%clk 00:02:54]} 10. O-O {[%clk
00:03:01]} {[%emt 00:00:02]} O-O {[%clk 00:02:54]} {[%emt 00:00:02]} 11. Rb1
{[%clk 00:03:01]} {[%emt 00:00:03]} e5 {[%clk 00:02:53]} {[%emt 00:00:02]} 12.
a3 {[%clk 00:03:02]} {[%emt 00:00:02]} a5 {[%clk 00:02:54]} {[%emt 00:00:01]}
13. e4 {[%clk 00:02:50]} {[%emt 00:00:13]} dxe3 {[%clk 00:02:38]} {[%emt
00:00:19]} 14. Bxe3 {[%clk 00:02:50]} {[%emt 00:00:02]} h6 {[%clk 00:02:38]}
{[%emt 00:00:02]} 15. Qc2 {[%clk 00:02:42]} {[%emt 00:00:10]} Bf5 {[%clk
00:02:37]} {[%emt 00:00:02]} 16. Nh4 {[%clk 00:02:40]} {[%emt 00:00:05]} Bc8
{[%clk 00:02:29]} {[%emt 00:00:09]} 17. Nf3 {[%clk 00:02:40]} {[%emt 00:00:02]}
Qc7 {[%clk 00:02:24]} {[%emt 00:00:08]} 18. Nd2 {[%clk 00:02:40]} {[%emt
00:00:01]} Bf5 {[%clk 00:02:23]} {[%emt 00:00:03]} 19. Ne4 {[%clk 00:02:41]}
{[%emt 00:00:01]} Be7 {[%clk 00:02:18]} {[%emt 00:00:08]} 20. Nxf6+ {[%clk
00:02:39]} {[%emt 00:00:04]} Bxf6 {[%clk 00:02:18]} {[%emt 00:00:01]} 21. Rbd1
{[%clk 00:02:37]} {[%emt 00:00:04]} Rfd8 {[%clk 00:02:18]} {[%emt 00:00:01]} 22.
Be4 {[%clk 00:02:38]} Be6 {[%clk 00:02:12]} {[%emt 00:00:10]} 23. f4 {[%clk
00:02:38]} {[%emt 00:00:03]} exf4 {[%clk 00:02:12]} {[%emt 00:00:01]} 24. Rxf4
{[%clk 00:02:35]} {[%emt 00:00:05]} Bd4 {[%clk 00:02:09]} {[%emt 00:00:05]} 25.
Bxd4 {[%clk 00:02:19]} {[%emt 00:00:18]} Rxd4 {[%clk 00:02:10]} {[%emt
00:00:02]} 26. Rdf1 {[%clk 00:02:20]} Rad8 {[%clk 00:02:10]} {[%emt 00:00:01]}
27. Qf2 {[%clk 00:02:13]} {[%emt 00:00:09]} b6 {[%clk 00:02:09]} {[%emt
00:00:04]} 28. h4 {[%clk 00:02:03]} {[%emt 00:00:12]} Qd7 {[%clk 00:01:42]}
{[%emt 00:00:28]} 29. g4 {[%clk 00:01:45]} {[%emt 00:00:20]} Qe7 {[%clk
00:01:39]} {[%emt 00:00:05]} 30. Qg3 {[%clk 00:01:33]} {[%emt 00:00:14]} R8d7
{[%clk 00:01:39]} {[%emt 00:00:03]} 31. g5 {[%clk 00:01:31]} {[%emt 00:00:03]}
h5 {[%clk 00:01:33]} {[%emt 00:00:08]} 32. Qf3 {[%clk 00:01:21]} {[%emt
00:00:13]} Bg4 {[%clk 00:01:26]} {[%emt 00:00:08]} 33. Qf2 {[%clk 00:01:22]}
{[%emt 00:00:01]} Qe8 {[%clk 00:01:10]} {[%emt 00:00:19]} 34. g6 {[%clk
00:01:18]} {[%emt 00:00:05]} f5 {[%clk 00:00:50]} {[%emt 00:00:22]} 35. Bd5+
{[%clk 00:01:19]} {[%emt 00:00:01]} R7xd5 {[%clk 00:00:37]} {[%emt 00:00:16]}
36. cxd5 {[%clk 00:01:20]} {[%emt 00:00:01]} Rxd3 {[%clk 00:00:34]} {[%emt
00:00:05]} 37. Re1 {[%clk 00:01:18]} {[%emt 00:00:04]} Qxg6 {[%clk 00:00:34]}
{[%emt 00:00:01]} 38. Kh2 {[%clk 00:01:14]} {[%emt 00:00:06]} Rh3+ {[%clk
00:00:35]} {[%emt 00:00:02]} 39. Kg1 {[%clk 00:01:11]} {[%emt 00:00:04]} Bf3+
{[%clk 00:00:35]} {[%emt 00:00:02]} 0-1

[Event "MČR v bleskovém šachu družstev 2019"]
[Site "Teplice, Czech Republic"]
[Date "2019.09.14"]
[Round "1.26"]
[White "Sorm, Daniel"]
[Black "Kucera, Tomas"]
[Result "0-1"]
[TimeControl "3 mim. + 2 s"]
[WhiteTitle "FM"]
[WhiteFideId "5400139"]
[BlackFideId "311065"]
[WhiteElo "2310"]
[BlackElo "2014"]

1. d4 {[%clk 00:03:02]} {[%emt 00:00:01]} Nf6 {[%clk 00:03:03]} {[%emt
00:00:01]} 2. c4 {[%clk 00:03:03]} {[%emt 00:00:01]} d6 {[%clk 00:03:04]} 3.
Nc3 {[%clk 00:03:04]} {[%emt 00:00:01]} g6 {[%clk 00:03:06]} 4. e4 {[%clk
00:03:05]} {[%emt 00:00:02]} Bg7 {[%clk 00:03:07]} 5. h3 {[%clk 00:03:06]}
{[%emt 00:00:01]} O-O {[%clk 00:03:07]} {[%emt 00:00:02]} 6. Bg5 {[%clk
00:03:07]} c5 {[%clk 00:02:59]} {[%emt 00:00:11]} 7. d5 {[%clk 00:03:07]}
{[%emt 00:00:02]} a6 {[%clk 00:02:54]} {[%emt 00:00:07]} 8. a4 {[%clk
00:03:02]} {[%emt 00:00:06]} e6 {[%clk 00:02:54]} {[%emt 00:00:03]} 9. Bd3
{[%clk 00:03:03]} exd5 {[%clk 00:02:54]} {[%emt 00:00:02]} 10. exd5 {[%clk
00:03:02]} {[%emt 00:00:03]} Re8+ {[%clk 00:02:54]} {[%emt 00:00:02]} 11. Nge2
{[%clk 00:03:02]} Nbd7 {[%clk 00:02:47]} {[%emt 00:00:09]} 12. f4 {[%clk
00:03:03]} {[%emt 00:00:01]} Qa5 {[%clk 00:02:15]} {[%emt 00:00:34]} 13. O-O
{[%clk 00:02:54]} {[%emt 00:00:11]} h6 {[%clk 00:01:39]} {[%emt 00:00:38]} 14.
Bh4 {[%clk 00:02:55]} {[%emt 00:00:02]} Nf8 {[%clk 00:01:28]} {[%emt 00:00:12]}
15. Qd2 {[%clk 00:02:41]} {[%emt 00:00:16]} Bd7 {[%clk 00:01:10]} {[%emt
00:00:20]} 16. f5 {[%emt 00:01:00]} g5 {[%clk 00:01:06]} {[%emt 00:00:02]} 17.
Bg3 {[%emt 00:00:12]} Qb6 {[%clk 00:00:52]} {[%emt 00:00:04]} 18. a5 {[%emt
00:00:05]} Qc7 {[%emt 00:00:09]} 19. h4 {[%clk 00:01:37]} {[%emt 00:00:03]}
gxh4 {[%clk 00:00:46]} {[%emt 00:00:10]} 20. Bxh4 {[%emt 00:00:18]} N8h7 {[%emt
00:00:08]} 21. Nf4 {[%emt 00:00:04]} Re5 {[%emt 00:00:12]} 22. Bg3 {[%clk
00:00:59]} {[%emt 00:00:08]} Re7 {[%clk 00:00:32]} 23. Bc2 {[%emt 00:00:28]}
Rae8 24. Bf2 {[%clk 00:00:51]} Ng5 {[%clk 00:00:32]} {[%emt 00:00:02]} 25. Qd3
{[%emt 00:00:05]} Nfe4 {[%clk 00:00:31]} {[%emt 00:00:02]} 26. Bh4 {[%clk
00:00:40]} {[%emt 00:00:10]} Bd4+ {[%clk 00:00:29]} {[%emt 00:00:05]} 27. Kh2
{[%clk 00:00:37]} {[%emt 00:00:05]} Bxf5 {[%clk 00:00:30]} 28. Nh5 {[%clk
00:00:35]} {[%emt 00:00:04]} Qd7 {[%clk 00:00:23]} {[%emt 00:00:08]} 29. Bxg5
{[%clk 00:00:31]} {[%emt 00:00:07]} hxg5 {[%emt 00:00:03]} 30. Nxe4 {[%clk
00:00:31]} Bxe4 {[%clk 00:00:23]} {[%emt 00:00:02]} 31. Qd2 {[%clk 00:00:32]}
{[%emt 00:00:01]} Qg4 {[%clk 00:00:22]} {[%emt 00:00:03]} 32. Qxd4 {[%clk
00:00:19]} {[%emt 00:00:15]} Qxg2# {[%clk 00:00:19]} {[%emt 00:00:04]} 0-1

[Event "MČR v bleskovém šachu družstev 2019"]
[Site "Teplice, Czech Republic"]
[Date "2019.09.14"]
[Round "1.27"]
[White "Plasil, Petr"]
[Black "Strasil, Pavel"]
[Result "1/2-1/2"]
[TimeControl "3 mim. + 2 s"]
[WhiteFideId "359360"]
[BlackFideId "308013"]
[WhiteElo "1950"]
[BlackElo "2026"]

1. d4 {[%clk 00:03:02]} Nf6 {[%clk 00:03:02]} {[%emt 00:00:03]} 2. c4 {[%clk
00:03:03]} {[%emt 00:00:01]} e6 {[%clk 00:03:02]} {[%emt 00:00:02]} 3. Nf3
{[%clk 00:03:04]} {[%emt 00:00:01]} d5 {[%clk 00:03:03]} 4. Nc3 {[%clk
00:03:03]} {[%emt 00:00:02]} Be7 {[%clk 00:02:58]} {[%emt 00:00:07]} 5. cxd5
{[%clk 00:03:01]} {[%emt 00:00:04]} exd5 {[%clk 00:02:58]} {[%emt 00:00:03]} 6.
Bg5 {[%clk 00:03:00]} {[%emt 00:00:03]} c6 {[%clk 00:02:59]} 7. e3 {[%clk
00:03:00]} {[%emt 00:00:01]} Bf5 {[%clk 00:03:00]} 8. Bd3 {[%clk 00:03:01]}
{[%emt 00:00:02]} Bxd3 {[%clk 00:02:59]} {[%emt 00:00:02]} 9. Qxd3 {[%clk
00:03:01]} {[%emt 00:00:02]} Nbd7 {[%clk 00:03:01]} {[%emt 00:00:01]} 10. O-O
{[%clk 00:02:58]} {[%emt 00:00:05]} O-O {[%clk 00:03:01]} {[%emt 00:00:01]} 11.
Rfe1 {[%clk 00:02:48]} {[%emt 00:00:12]} Re8 {[%clk 00:03:01]} {[%emt
00:00:03]} 12. Rad1 {[%clk 00:02:47]} {[%emt 00:00:02]} Ne4 {[%clk 00:02:59]}
{[%emt 00:00:05]} 13. Bxe7 {[%clk 00:02:15]} {[%emt 00:00:33]} Qxe7 {[%clk
00:02:58]} {[%emt 00:00:03]} 14. a3 {[%clk 00:02:04]} {[%emt 00:00:14]} a5
{[%clk 00:02:56]} {[%emt 00:00:04]} 15. Nd2 {[%clk 00:01:56]} {[%emt 00:00:10]}
Ndf6 {[%clk 00:02:34]} {[%emt 00:00:23]} 16. f3 {[%clk 00:01:54]} {[%emt
00:00:05]} Nxc3 {[%clk 00:02:23]} {[%emt 00:00:13]} 17. Qxc3 {[%clk 00:01:50]}
{[%emt 00:00:06]} Qd7 {[%clk 00:02:12]} {[%emt 00:00:13]} 18. b4 {[%clk
00:01:43]} {[%emt 00:00:09]} axb4 {[%clk 00:02:13]} {[%emt 00:00:01]} 19. axb4
{[%clk 00:01:44]} Ra4 {[%clk 00:02:10]} {[%emt 00:00:04]} 20. Ra1 {[%clk
00:01:42]} {[%emt 00:00:05]} Rea8 {[%clk 00:02:10]} {[%emt 00:00:02]} 21. Rxa4
{[%clk 00:01:29]} {[%emt 00:00:14]} Rxa4 {[%clk 00:02:11]} {[%emt 00:00:01]} 22.
Ra1 {[%clk 00:01:30]} Rxa1+ 23. Qxa1 {[%clk 00:01:31]} Qc8 {[%clk 00:02:04]}
{[%emt 00:00:06]} 24. Qa5 {[%clk 00:01:25]} {[%emt 00:00:08]} h6 {[%clk
00:01:59]} {[%emt 00:00:07]} 25. Nb3 {[%clk 00:01:25]} {[%emt 00:00:02]} Nd7
{[%clk 00:01:59]} {[%emt 00:00:02]} 26. Nc5 {[%clk 00:01:25]} {[%emt 00:00:02]}
b6 {[%clk 00:01:56]} {[%emt 00:00:06]} 27. Qa6 {[%clk 00:01:23]} {[%emt
00:00:04]} Qxa6 {[%clk 00:01:49]} {[%emt 00:00:08]} 28. Nxa6 {[%clk 00:01:24]}
{[%emt 00:00:02]} Kf8 {[%clk 00:01:47]} {[%emt 00:00:04]} 29. e4 {[%clk
00:01:02]} {[%emt 00:00:23]} dxe4 {[%clk 00:01:47]} {[%emt 00:00:02]} 30. fxe4
{[%clk 00:01:03]} {[%emt 00:00:01]} Ke7 {[%clk 00:01:47]} {[%emt 00:00:02]} 31.
b5 {[%clk 00:00:57]} {[%emt 00:00:08]} cxb5 {[%clk 00:01:43]} {[%emt 00:00:06]}
32. Kf2 {[%clk 00:00:56]} {[%emt 00:00:04]} Nf6 {[%clk 00:01:42]} {[%emt
00:00:02]} 33. Kf3 {[%clk 00:00:48]} {[%emt 00:00:10]} Kd7 {[%clk 00:01:44]}
{[%emt 00:00:01]} 34. Nb4 {[%clk 00:00:45]} {[%emt 00:00:06]} h5 {[%clk
00:01:38]} {[%emt 00:00:07]} 35. h3 {[%clk 00:00:43]} {[%emt 00:00:03]} Ke6
{[%clk 00:01:28]} {[%emt 00:00:13]} 36. Kf4 {[%clk 00:00:41]} {[%emt 00:00:04]}
g6 {[%clk 00:01:19]} {[%emt 00:00:10]} 37. g4 {[%clk 00:00:36]} {[%emt
00:00:07]} hxg4 {[%clk 00:01:18]} {[%emt 00:00:03]} 38. hxg4 {[%clk 00:00:37]}
{[%emt 00:00:01]} Ne8 {[%clk 00:01:04]} {[%emt 00:00:16]} 39. Nd5 {[%clk
00:00:35]} {[%emt 00:00:04]} Nd6 {[%clk 00:00:50]} {[%emt 00:00:16]} 40. Nxb6
{[%clk 00:00:34]} {[%emt 00:00:04]} b4 {[%clk 00:00:51]} 41. Na4 {[%clk
00:00:35]} {[%emt 00:00:02]} Nc4 {[%clk 00:00:49]} {[%emt 00:00:04]} 42. Nc5+
{[%clk 00:00:34]} {[%emt 00:00:02]} Kd6 {[%clk 00:00:47]} {[%emt 00:00:05]} 43.
Nb3 {[%clk 00:00:32]} {[%emt 00:00:04]} Kc6 {[%clk 00:00:38]} {[%emt 00:00:11]}
44. Kg5 {[%clk 00:00:26]} {[%emt 00:00:08]} Nd6 {[%clk 00:00:32]} {[%emt
00:00:08]} 45. e5 {[%clk 00:00:19]} {[%emt 00:00:09]} Ne4+ {[%clk 00:00:31]}
{[%emt 00:00:03]} 46. Kf4 {[%clk 00:00:18]} {[%emt 00:00:02]} Kd5 {[%clk
00:00:31]} {[%emt 00:00:03]} 47. Ke3 {[%clk 00:00:16]} {[%emt 00:00:04]} Nc3
{[%clk 00:00:21]} {[%emt 00:00:12]} 48. Kd3 {[%clk 00:00:15]} {[%emt 00:00:03]}
Nb5 {[%clk 00:00:19]} {[%emt 00:00:03]} 49. g5 {[%clk 00:00:13]} {[%emt
00:00:04]} Ke6 {[%clk 00:00:18]} {[%emt 00:00:03]} 50. Kc4 {[%clk 00:00:12]}
{[%emt 00:00:03]} Nc7 {[%clk 00:00:15]} {[%emt 00:00:05]} 51. Kxb4 {[%clk
00:00:13]} {[%emt 00:00:02]} Kd5 {[%clk 00:00:12]} {[%emt 00:00:04]} 52. Kc3
{[%clk 00:00:13]} {[%emt 00:00:02]} Ne6 {[%clk 00:00:14]} 53. Kd3 {[%clk
00:00:13]} {[%emt 00:00:02]} Nxg5 {[%clk 00:00:15]} {[%emt 00:00:01]} 54. Nd2
{[%clk 00:00:14]} {[%emt 00:00:02]} Ne6 {[%clk 00:00:14]} {[%emt 00:00:02]} 55.
Ne4 {[%clk 00:00:15]} {[%emt 00:00:02]} Nf4+ {[%clk 00:00:13]} {[%emt
00:00:03]} 56. Ke3 {[%clk 00:00:16]} Ng2+ {[%clk 00:00:14]} 57. Kd3 {[%clk
00:00:17]} Ke6 {[%clk 00:00:10]} {[%emt 00:00:06]} 58. Ng5+ {[%clk 00:00:18]}
{[%emt 00:00:01]} Ke7 {[%clk 00:00:11]} 59. Ne4 {[%clk 00:00:19]} Nh4 {[%clk
00:00:10]} {[%emt 00:00:03]} 60. Ke3 {[%clk 00:00:20]} {[%emt 00:00:01]} Nf5+
{[%emt 00:00:02]} 61. Kd3 Ke6 {[%clk 00:00:11]} {[%emt 00:00:02]} 62. Ng5+
{[%clk 00:00:22]} {[%emt 00:00:01]} Ke7 {[%clk 00:00:11]} {[%emt 00:00:02]} 63.
Ne4 {[%clk 00:00:23]} {[%emt 00:00:01]} Ke6 {[%clk 00:00:12]} {[%emt 00:00:01]}
64. Ng5+ Kxe5 {[%emt 00:00:25]} 1/2-1/2

[Event "MČR v bleskovém šachu družstev 2019"]
[Site "Teplice, Czech Republic"]
[Date "2019.09.14"]
[Round "1.28"]
[White "Krejci, Jan"]
[Black "Ruzicka, Filip"]
[Result "1/2-1/2"]
[TimeControl "3 mim. + 2 s"]
[WhiteFideId "316873"]
[BlackFideId "386154"]
[WhiteElo "2048"]
[BlackElo "1798"]

1. Nf3 {[%clk 00:03:02]} Nf6 {[%clk 00:03:03]} {[%emt 00:00:01]} 2. c4 {[%clk
00:03:03]} g6 {[%clk 00:03:04]} {[%emt 00:00:02]} 3. b4 {[%clk 00:03:04]} Bg7
{[%clk 00:03:04]} {[%emt 00:00:02]} 4. Bb2 {[%clk 00:03:06]} O-O {[%emt
00:00:02]} 5. g3 {[%emt 00:00:01]} d6 {[%clk 00:03:04]} {[%emt 00:00:02]} 6.
Bg2 {[%clk 00:03:09]} {[%emt 00:00:01]} e5 {[%clk 00:02:50]} {[%emt 00:00:15]}
7. d3 {[%clk 00:03:10]} {[%emt 00:00:01]} Nbd7 {[%clk 00:02:43]} {[%emt
00:00:09]} 8. O-O {[%clk 00:03:10]} {[%emt 00:00:03]} a5 {[%clk 00:02:34]}
{[%emt 00:00:11]} 9. b5 {[%clk 00:03:10]} {[%emt 00:00:02]} Nc5 {[%clk
00:02:34]} 10. Nc3 {[%clk 00:03:01]} {[%emt 00:00:10]} Be6 {[%clk 00:02:07]}
{[%emt 00:00:30]} 11. Nd2 {[%clk 00:02:50]} {[%emt 00:00:13]} Qc8 {[%clk
00:01:50]} {[%emt 00:00:19]} 12. Re1 {[%clk 00:02:49]} {[%emt 00:00:04]} c6
{[%clk 00:01:50]} {[%emt 00:00:02]} 13. Nb3 {[%clk 00:02:39]} {[%emt 00:00:12]}
Nfd7 {[%clk 00:01:41]} {[%emt 00:00:10]} 14. Nxc5 {[%clk 00:02:28]} {[%emt
00:00:13]} Nxc5 {[%clk 00:01:40]} {[%emt 00:00:03]} 15. Rb1 {[%clk 00:02:14]}
{[%emt 00:00:16]} Qc7 {[%clk 00:01:12]} {[%emt 00:00:29]} 16. Qc2 {[%clk
00:02:11]} {[%emt 00:00:06]} Rfc8 {[%clk 00:01:11]} {[%emt 00:00:03]} 17. Ba3
{[%clk 00:02:09]} {[%emt 00:00:04]} Nd7 {[%clk 00:01:07]} {[%emt 00:00:06]} 18.
Ne4 {[%clk 00:02:00]} {[%emt 00:00:11]} d5 {[%clk 00:00:49]} {[%emt 00:00:19]}
19. Bd6 {[%clk 00:01:21]} {[%emt 00:00:42]} Qd8 {[%clk 00:00:50]} {[%emt
00:00:01]} 20. Nd2 {[%clk 00:01:21]} {[%emt 00:00:02]} cxb5 {[%clk 00:00:47]}
{[%emt 00:00:04]} 21. Rxb5 {[%clk 00:01:22]} {[%emt 00:00:02]} Nb6 {[%clk
00:00:38]} {[%emt 00:00:10]} 22. Bc5 {[%clk 00:01:18]} {[%emt 00:00:07]} Nd7
{[%clk 00:00:37]} {[%emt 00:00:03]} 23. Ba3 {[%clk 00:01:16]} {[%emt 00:00:04]}
Nf6 {[%clk 00:00:29]} {[%emt 00:00:09]} 24. Rxb7 {[%clk 00:01:15]} {[%emt
00:00:04]} dxc4 {[%clk 00:00:27]} {[%emt 00:00:03]} 25. Nxc4 {[%clk 00:01:16]}
{[%emt 00:00:03]} Bxc4 {[%clk 00:00:24]} {[%emt 00:00:04]} 26. dxc4 {[%clk
00:01:16]} {[%emt 00:00:02]} Ra6 {[%clk 00:00:12]} {[%emt 00:00:14]} 27. Rd1
{[%clk 00:01:09]} {[%emt 00:00:10]} Qe8 {[%clk 00:00:10]} {[%emt 00:00:03]} 28.
Rbb1 {[%clk 00:00:57]} {[%emt 00:00:14]} e4 {[%clk 00:00:10]} {[%emt 00:00:02]}
29. c5 {[%clk 00:00:56]} {[%emt 00:00:03]} Nd7 {[%clk 00:00:05]} {[%emt
00:00:07]} 30. Bxe4 {[%clk 00:00:54]} {[%emt 00:00:05]} Nxc5 {[%clk 00:00:03]}
{[%emt 00:00:04]} 31. Bxc5 {[%emt 00:00:03]} Bf8 32. Rd5 {[%clk 00:00:41]}
{[%emt 00:00:13]} Bxc5 {[%clk 00:00:05]} {[%emt 00:00:02]} 33. Rxc5 {[%clk
00:00:42]} Rxc5 {[%clk 00:00:06]} {[%emt 00:00:01]} 34. Qxc5 {[%clk 00:00:42]}
{[%emt 00:00:01]} Qxe4 {[%clk 00:00:07]} {[%emt 00:00:01]} 35. Rb8+ {[%clk
00:00:33]} {[%emt 00:00:11]} Kg7 {[%clk 00:00:07]} {[%emt 00:00:02]} 36. Qf8+
{[%clk 00:00:34]} {[%emt 00:00:02]} Kf6 {[%clk 00:00:08]} 37. Qd8+ {[%clk
00:00:32]} {[%emt 00:00:04]} Qe7 {[%clk 00:00:07]} {[%emt 00:00:03]} 38. Qd4+
{[%clk 00:00:27]} {[%emt 00:00:06]} Qe5 {[%clk 00:00:06]} {[%emt 00:00:03]} 39.
Qxe5+ {[%clk 00:00:25]} {[%emt 00:00:05]} Kxe5 {[%clk 00:00:07]} {[%emt
00:00:01]} 40. Rb7 {[%clk 00:00:26]} {[%emt 00:00:01]} Kf6 {[%clk 00:00:07]}
{[%emt 00:00:02]} 41. Kg2 {[%clk 00:00:27]} Rc6 {[%clk 00:00:08]} {[%emt
00:00:01]} 42. Ra7 {[%clk 00:00:28]} {[%emt 00:00:01]} Rc2 {[%clk 00:00:09]}
{[%emt 00:00:02]} 43. Rxa5 {[%clk 00:00:28]} {[%emt 00:00:01]} Rxe2 {[%clk
00:00:10]} {[%emt 00:00:02]} 44. a4 {[%clk 00:00:29]} Ra2 {[%clk 00:00:10]}
{[%emt 00:00:02]} 45. Ra8 {[%clk 00:00:30]} {[%emt 00:00:01]} Ke6 {[%clk
00:00:11]} {[%emt 00:00:01]} 46. Kf3 {[%clk 00:00:31]} {[%emt 00:00:02]} h5
{[%clk 00:00:11]} {[%emt 00:00:01]} 47. h4 {[%clk 00:00:32]} {[%emt 00:00:01]}
Ra3+ {[%clk 00:00:12]} {[%emt 00:00:02]} 48. Ke4 {[%clk 00:00:33]} {[%emt
00:00:01]} Ra2 {[%clk 00:00:11]} {[%emt 00:00:02]} 49. f3 {[%clk 00:00:34]}
{[%emt 00:00:01]} Re2+ {[%clk 00:00:11]} {[%emt 00:00:02]} 50. Kf4 {[%clk
00:00:35]} Ra2 {[%clk 00:00:12]} {[%emt 00:00:01]} 51. Ra6+ {[%clk 00:00:34]}
{[%emt 00:00:04]} Ke7 {[%clk 00:00:12]} {[%emt 00:00:03]} 52. a5 {[%clk
00:00:34]} Ra4+ {[%clk 00:00:12]} {[%emt 00:00:02]} 53. Ke5 {[%clk 00:00:35]}
{[%emt 00:00:01]} Ra1 {[%clk 00:00:09]} {[%emt 00:00:05]} 54. Ra7+ {[%clk
00:00:36]} {[%emt 00:00:02]} Ke8 {[%clk 00:00:08]} {[%emt 00:00:02]} 55. Kf6
{[%clk 00:00:37]} {[%emt 00:00:01]} Rf1 {[%clk 00:00:08]} {[%emt 00:00:02]} 56.
Re7+ {[%clk 00:00:38]} {[%emt 00:00:01]} Kd8 {[%clk 00:00:08]} {[%emt
00:00:03]} 57. Rxf7 {[%clk 00:00:37]} {[%emt 00:00:02]} Rxf3+ {[%clk 00:00:08]}
{[%emt 00:00:02]} 58. Kxg6 {[%clk 00:00:38]} {[%emt 00:00:01]} Rxg3+ {[%clk
00:00:09]} {[%emt 00:00:01]} 59. Kxh5 {[%clk 00:00:39]} {[%emt 00:00:02]} Ra3
{[%clk 00:00:09]} {[%emt 00:00:01]} 60. Rf5 {[%clk 00:00:39]} {[%emt 00:00:02]}
Ra4 {[%clk 00:00:10]} {[%emt 00:00:01]} 61. Re5 {[%clk 00:00:40]} Kc7 {[%clk
00:00:11]} 62. Kg5 {[%clk 00:00:41]} {[%emt 00:00:01]} Kd6 {[%clk 00:00:12]}
{[%emt 00:00:01]} 63. Rf5 {[%clk 00:00:41]} {[%emt 00:00:02]} Ra2 {[%clk
00:00:13]} {[%emt 00:00:02]} 64. h5 {[%clk 00:00:42]} {[%emt 00:00:01]} Ke7
{[%clk 00:00:13]} {[%emt 00:00:01]} 65. h6 {[%clk 00:00:42]} {[%emt 00:00:02]}
Rg2+ {[%clk 00:00:14]} {[%emt 00:00:01]} 66. Kf4 {[%clk 00:00:44]} Rh2 {[%clk
00:00:13]} {[%emt 00:00:03]} 67. Re5+ {[%clk 00:00:42]} {[%emt 00:00:04]} Kf7
{[%clk 00:00:12]} {[%emt 00:00:02]} 68. Kg5 {[%clk 00:00:40]} {[%emt 00:00:05]}
Rg2+ {[%clk 00:00:13]} 69. Kf5 {[%clk 00:00:41]} {[%emt 00:00:01]} Rh2 {[%clk
00:00:14]} {[%emt 00:00:01]} 70. a6 {[%clk 00:00:41]} {[%emt 00:00:02]} Rxh6
{[%clk 00:00:13]} {[%emt 00:00:02]} 71. Ra5 {[%clk 00:00:43]} Rh8 {[%clk
00:00:14]} {[%emt 00:00:02]} 72. a7 {[%clk 00:00:44]} Ra8 {[%clk 00:00:15]}
{[%emt 00:00:01]} 73. Ke5 {[%clk 00:00:45]} Ke7 {[%clk 00:00:16]} {[%emt
00:00:01]} 74. Kd5 Kd7 {[%emt 00:00:01]} 75. Kc5 Kc7 76. Kb5 {[%clk 00:00:48]}
Kb7 {[%clk 00:00:20]} 1/2-1/2

[Event "MČR v bleskovém šachu družstev 2019"]
[Site "Teplice, Czech Republic"]
[Date "2019.09.14"]
[Round "2.1"]
[White "Kociscak, Jiri"]
[Black "Istona, Martin"]
[Result "1-0"]
[TimeControl "3 mim. + 2 s"]
[WhiteTitle "IM"]
[BlackTitle "FM"]
[WhiteFideId "322121"]
[BlackFideId "14923475"]
[WhiteElo "2417"]
[BlackElo "2078"]

1. d4 {[%clk 00:03:03]} {[%emt 00:00:01]} Nf6 {[%clk 00:03:02]} {[%emt
00:00:03]} 2. c4 {[%clk 00:03:04]} g6 {[%clk 00:03:04]} 3. Nf3 {[%clk
00:02:59]} {[%emt 00:00:07]} Bg7 {[%clk 00:03:04]} 4. g3 {[%clk 00:02:57]}
{[%emt 00:00:07]} O-O {[%clk 00:03:04]} 5. Bg2 {[%clk 00:02:58]} {[%emt
00:00:02]} c6 {[%clk 00:03:05]} {[%emt 00:00:01]} 6. O-O {[%clk 00:02:57]}
{[%emt 00:00:03]} d5 {[%clk 00:03:06]} 7. Nbd2 {[%clk 00:02:57]} {[%emt
00:00:02]} a5 {[%clk 00:02:47]} {[%emt 00:00:21]} 8. e3 {[%clk 00:02:32]}
{[%emt 00:00:27]} Bf5 {[%clk 00:02:46]} {[%emt 00:00:04]} 9. Qe2 {[%clk
00:02:32]} Ne4 {[%clk 00:02:21]} {[%emt 00:00:28]} 10. Nh4 {[%clk 00:02:19]}
{[%emt 00:00:14]} Nxd2 {[%clk 00:02:19]} {[%emt 00:00:04]} 11. Bxd2 {[%clk
00:02:19]} {[%emt 00:00:01]} Be6 {[%clk 00:02:05]} {[%emt 00:00:16]} 12. b3
{[%clk 00:02:06]} {[%emt 00:00:15]} c5 {[%clk 00:01:07]} {[%emt 00:01:00]} 13.
cxd5 {[%clk 00:01:37]} {[%emt 00:00:31]} Bxd5 {[%clk 00:01:08]} {[%emt
00:00:01]} 14. e4 {[%clk 00:01:38]} Be6 {[%clk 00:01:02]} {[%emt 00:00:07]} 15.
d5 {[%clk 00:01:39]} {[%emt 00:00:01]} Bxa1 {[%clk 00:01:03]} {[%emt 00:00:02]}
16. Rxa1 {[%clk 00:01:40]} Bc8 {[%clk 00:00:55]} {[%emt 00:00:09]} 17. Bh6
{[%clk 00:01:12]} {[%emt 00:00:30]} e5 {[%clk 00:00:32]} {[%emt 00:00:26]} 18.
dxe6 {[%clk 00:00:47]} {[%emt 00:00:27]} Bxe6 {[%clk 00:00:29]} {[%emt
00:00:04]} 19. Rd1 {[%clk 00:00:43]} {[%emt 00:00:06]} Qc7 {[%clk 00:00:14]}
{[%emt 00:00:18]} 20. Qb2 {[%clk 00:00:26]} {[%emt 00:00:19]} f6 {[%clk
00:00:14]} {[%emt 00:00:01]} 21. Bxf8 {[%clk 00:00:26]} {[%emt 00:00:02]} 1-0